bitfinex/quotes_SOLUSD_20250829
["timestamp","ask_amount","ask_price","bid_price","bid_amount"]
[1756469845564,17.32331638,208.77,208.75,20.7]
[1756469845769,26.0,208.74,208.73,20.03]
[1756469845951,26.0,208.74,208.73,20.73]
[1756469847173,30.79064865,208.74,208.73,20.73]
[1756469847969,30.79064865,208.74,208.73,20.03]
[1756469848466,30.79064865,208.74,208.73,20.73]
[1756469851448,30.79064865,208.74,208.73,20.03]
[1756469851879,30.79064865,208.74,208.73,20.7]
[1756469852189,26.06,208.79,208.75,20.0]
[1756469852482,26.06,208.79,208.77,20.0]
[1756469852483,0.06,208.79,208.77,20.0]
[1756469852662,26.0,208.78,208.77,20.0]
[1756469852857,30.78973081,208.78,208.77,20.0]
[1756469853067,26.0,208.78,208.77,20.0]
[1756469853374,26.0,208.78,208.77,20.67]
[1756469853577,0.06,208.79,208.77,33.20335614]
[1756469853778,0.06,208.79,208.78,13.20335614]
[1756469853950,0.06,208.79,208.78,0.67]
[1756469854647,26.06,208.79,208.78,0.67]
[1756469855870,26.06,208.79,208.77,20.0]
[1756469855871,26.0,208.78,208.77,20.0]
[1756469856566,26.06,208.79,208.77,20.0]
[1756469856759,4.78973081,208.78,208.77,20.0]
[1756469857266,17.86308695,208.78,208.73,20.03]
[1756469857569,12.53335614,208.74,208.73,0.03]
[1756469857949,26.0,208.75,208.73,0.03]
[1756469857950,38.53335614,208.75,208.73,0.03]
[1756469858452,30.78973081,208.78,208.74,32.53335614]
[1756469858658,26.0,208.78,208.76,12.53335614]
[1756469858878,26.0,208.78,208.76,32.53335614]
[1756469859065,12.53335614,208.77,208.76,20.0]
[1756469859268,26.0,208.75,208.74,20.0]
[1756469859857,13.07335614,208.75,208.73,0.03]
[1756469860064,12.53335614,208.75,208.73,0.03]
[1756469860764,26.0,208.76,208.73,0.03]
[1756469860765,12.53335614,208.74,208.73,0.03]
[1756469860968,17.32400479,208.74,208.73,0.03]
[1756469861154,17.32400479,208.74,208.73,20.03]
[1756469861961,17.32400479,208.74,208.73,0.03]
[1756469862174,18.00616636,208.74,208.73,0.03]
[1756469862850,4.93303973,208.73,208.72,0.03]
[1756469863057,18.00639587,208.73,208.72,0.03]
[1756469863967,4.93303973,208.73,208.72,0.03]
[1756469864174,17.46639587,208.73,208.72,0.03]
[1756469864366,18.00639587,208.73,208.72,0.03]
[1756469864772,18.00639587,208.73,208.71,0.03]
[1756469864973,43.46662541,208.72,208.71,0.03]
[1756469865475,43.32446384,208.72,208.71,0.03]
[1756469865688,26.0,208.74,208.71,20.7]
[1756469865856,26.0,208.72,208.71,20.03]
[1756469866267,12.53335614,208.74,208.71,20.03]
[1756469866470,26.0,208.72,208.71,20.03]
[1756469867166,26.0,208.72,208.71,20.7]
[1756469867365,4.78996024,208.77,208.73,20.0]
[1756469867558,4.78996024,208.77,208.75,20.0]
[1756469867759,4.78996024,208.77,208.75,20.67]
[1756469867981,26.0,208.76,208.75,20.67]
[1756469868172,43.32331638,208.77,208.75,20.67]
[1756469868374,43.32331638,208.77,208.75,20.0]
[1756469868881,26.0,208.74,208.73,20.0]
[1756469869066,17.32400479,208.74,208.73,20.0]
[1756469869462,26.0,208.72,208.71,20.03]
[1756469869678,38.53335614,208.72,208.71,20.03]
[1756469870076,39.07335614,208.72,208.71,0.03]
[1756469870474,26.0,208.71,208.7,0.03]
[1756469870692,42.56818529,208.71,208.7,0.03]
[1756469870986,47.35952255,208.71,208.7,0.03]
[1756469871487,50.12245952,208.71,208.7,0.03]
[1756469872462,50.80462109,208.71,208.7,0.03]
[1756469873190,30.79133726,208.71,208.7,0.03]
[1756469873372,50.12245952,208.71,208.7,0.7]
[1756469873568,24.12227816,208.72,208.7,0.7]
[1756469873769,24.12227816,208.72,208.7,20.7]
[1756469874389,24.12227816,208.72,208.71,0.67]
[1756469874585,4.7911559,208.72,208.71,0.67]
[1756469874967,4.7911559,208.72,208.7,20.03]
[1756469875175,4.7911559,208.72,208.7,20.7]
[1756469875377,4.7911559,208.72,208.7,20.03]
[1756469875589,4.7911559,208.72,208.7,20.7]
[1756469876587,19.33112226,208.71,208.7,20.03]
[1756469877471,24.12245952,208.71,208.7,20.03]
[1756469878189,50.80462109,208.71,208.7,0.03]
[1756469878374,24.80462109,208.71,208.7,0.03]
[1756469879178,5.47349883,208.71,208.7,0.03]
[1756469879495,50.12245952,208.71,208.7,0.03]
[1756469879685,34.82123323,208.71,208.7,0.03]
[1756469880080,4.79133726,208.71,208.7,0.03]
[1756469880397,4.79133726,208.71,208.7,0.7]
[1756469880695,4.79133726,208.71,208.7,0.03]
[1756469881100,4.79133726,208.71,208.7,0.74]
[1756469881301,24.12245952,208.71,208.7,0.03]
[1756469886614,24.66245952,208.71,208.7,0.03]
[1756469886817,24.12245952,208.71,208.7,0.03]
[1756469887194,24.18245952,208.71,208.7,0.03]
[1756469888100,24.32462109,208.71,208.7,0.03]
[1756469888291,24.86462109,208.71,208.7,0.03]
[1756469888984,0.14216157,208.7,208.69,0.2]
[1756469889179,4.85133726,208.71,208.69,0.91]
[1756469889390,30.02844789,208.7,208.69,0.2]
[1756469889592,50.1226891,208.7,208.69,0.2]
[1756469891186,30.79156684,208.7,208.69,0.2]
[1756469892608,43.35551312,208.7,208.69,0.2]
[1756469892908,4.79156684,208.7,208.69,0.91]
[1756469893108,0.06,208.71,208.7,20.0]
[1756469893285,0.06,208.71,208.7,20.71]
[1756469894002,4.08844789,208.76,208.7,33.27394628]
[1756469894189,26.06,208.76,208.75,20.0]
[1756469894392,26.06,208.76,208.75,20.71]
[1756469894687,0.06,208.76,208.75,20.71]
[1756469894902,0.06,208.76,208.75,33.27394628]
[1756469895327,0.06,208.76,208.75,20.71]
[1756469895487,0.06,208.76,208.75,33.27394628]
[1756469896211,0.06,208.76,208.75,20.71]
[1756469896604,0.06,208.76,208.75,20.0]
[1756469896800,12.62394628,208.76,208.75,20.0]
[1756469897512,0.06,208.76,208.75,20.0]
[1756469900412,38.62394628,208.76,208.73,20.0]
[1756469900599,4.79064865,208.74,208.73,20.0]
[1756469900799,17.35459493,208.74,208.73,20.0]
[1756469901596,26.0,208.72,208.69,58.16]
[1756469901900,26.0,208.72,208.7,0.71]
[1756469903411,4.02844789,208.74,208.72,20.0]
[1756469903729,0.06,208.76,208.74,20.0]
[1756469903730,4.79047536,208.75,208.74,20.0]
[1756469903929,4.79047536,208.75,208.74,20.71]
[1756469904227,30.79047536,208.75,208.74,20.71]
[1756469904800,0.06,208.76,208.74,33.27394628]
[1756469905102,0.06,208.76,208.75,13.27394628]
[1756469905301,0.06,208.76,208.75,0.71]
[1756469905697,26.06,208.76,208.75,38.67]
[1756469906114,0.06,208.76,208.75,38.67]
[1756469908227,0.06,208.76,208.74,20.0]
[1756469908417,38.62394628,208.76,208.74,20.0]
[1756469908719,26.06,208.76,208.74,20.0]
[1756469908920,38.62394628,208.76,208.74,20.0]
[1756469909820,30.85036666,208.76,208.74,20.71]
[1756469910131,0.06,208.76,208.75,51.23394628]
[1756469910340,0.06,208.76,208.75,38.67]
[1756469910511,4.85018969,208.76,208.75,119.27]
[1756469910839,4.85018969,208.76,208.75,80.6]
[1756469911006,17.41413597,208.76,208.75,80.6]
[1756469911210,18.01413597,208.76,208.75,80.6]
[1756469911410,17.41413597,208.76,208.75,80.6]
[1756469911623,17.55629754,208.76,208.75,80.6]
[1756469911809,4.7911077,208.72,208.7,100.6]
[1756469912017,17.35505398,208.72,208.7,100.6]
[1756469913833,30.7911077,208.72,208.7,100.6]
[1756469914011,30.7911077,208.72,208.7,101.26]
[1756469914212,43.35505398,208.72,208.7,101.26]
[1756469914411,4.02978096,208.75,208.72,20.0]
[1756469914615,0.06,208.76,208.74,20.0]
[1756469914821,0.06,208.76,208.75,0.66]
[1756469915015,30.85019345,208.76,208.75,38.62]
[1756469915927,0.06,208.76,208.75,38.62]
[1756469916437,26.06,208.76,208.75,38.62]
[1756469917014,0.06,208.76,208.75,38.62]
[1756469917236,0.06,208.76,208.75,51.18394628]
[1756469919118,0.06,208.76,208.75,0.66]
[1756469919311,0.06,208.76,208.75,38.62]
[1756469920531,0.06,208.76,208.74,100.6]
[1756469920724,12.62394628,208.76,208.74,20.0]
[1756469920932,12.62394628,208.76,208.74,57.96]
[1756469921115,4.85021568,208.76,208.74,57.96]
[1756469921313,0.06,208.76,208.75,0.66]
[1756469921646,26.06,208.76,208.75,0.66]
[1756469922046,26.06,208.76,208.74,57.96]
[1756469922350,26.06,208.76,208.74,58.62]
[1756469922549,26.06,208.76,208.74,57.96]
[1756469922732,26.06,208.76,208.74,58.62]
[1756469922925,26.06,208.76,208.75,0.66]
[1756469924445,0.06,208.76,208.75,13.22394628]
[1756469924631,0.06,208.76,208.75,107.41954029]
[1756469925141,0.06,208.76,208.75,81.26]
[1756469925950,0.06,208.76,208.75,107.41954029]
[1756469926153,0.06,208.79,208.75,112.20995945]
[1756469926349,0.06,208.79,208.78,46.15954029]
[1756469926550,0.06,208.79,208.78,84.11954029]
[1756469926745,0.06,208.79,208.78,84.77954029]
[1756469926943,0.06,208.81,208.8,33.59559401]
[1756469927144,0.06,208.81,208.8,84.11954029]
[1756469927451,0.06,208.81,208.8,165.37954029]
[1756469927636,0.06,208.81,208.8,170.16881232]
[1756469929741,0.06,208.81,208.8,170.31097389]
[1756469930637,0.06,208.81,208.8,170.29097389]
[1756469931957,0.06,208.84,208.83,33.59559401]
[1756469932133,0.06,208.84,208.83,164.57954029]
[1756469932334,0.06,208.84,208.83,297.88170186]
[1756469932947,0.06,208.84,208.83,302.67028587]
[1756469933443,0.06,208.84,208.83,317.06395287]
[1756469935455,0.06,208.84,208.83,20.0]
[1756469935662,0.06,208.84,208.83,57.94]
[1756469937562,0.06,208.84,208.83,84.75954029]
[1756469937764,0.06,208.84,208.83,89.5481243]
[1756469938060,1e-08,208.94,208.93,20.0]
[1756469938237,4.78606299,208.94,208.93,57.94]
[1756469938442,5.44606299,208.94,208.93,57.94]
[1756469938662,5.44606299,208.94,208.93,20.0]
[1756469938861,18.01000927,208.94,208.93,20.0]
[1756469939061,18.01000927,208.94,208.92,37.94]
[1756469939255,0.66,208.93,208.92,37.94]
[1756469939564,26.0,208.93,208.92,37.94]
[1756469940403,26.0,208.92,208.91,20.0]
[1756469940545,26.0,208.92,208.91,57.94]
[1756469941066,4.78606299,208.94,208.93,20.0]
[1756469941357,4.78606299,208.94,208.93,57.92]
[1756469941763,26.00000001,208.94,208.93,57.92]
[1756469943248,1e-08,208.94,208.93,57.92]
[1756469943438,1e-08,208.94,208.93,77.91590345]
[1756469943645,1e-08,208.94,208.93,77.20590345]
[1756469943864,1e-08,208.94,208.93,77.91590345]
[1756469945156,26.66000001,208.94,208.93,138.4]
[1756469945364,30.78606299,208.94,208.93,138.4]
[1756469945878,30.78606299,208.94,208.93,100.48]
[1756469946170,50.73196644,208.94,208.93,138.4]
[1756469946674,50.73196644,208.94,208.91,20.0]
[1756469946874,45.28590345,208.92,208.89,20.0]
[1756469947044,19.28590345,208.9,208.89,37.92]
[1756469947374,24.73288286,208.9,208.89,57.92]
[1756469947565,24.73288286,208.9,208.88,37.92]
[1756469947762,24.73288286,208.9,208.87,20.0]
[1756469947763,45.94590345,208.89,208.87,20.0]
[1756469948068,4.78697941,208.9,208.85,57.92]
[1756469948069,26.0,208.86,208.85,57.92]
[1756469948272,45.28590345,208.86,208.85,57.92]
[1756469948475,26.0,208.86,208.85,57.92]
[1756469948652,45.28590345,208.87,208.85,57.92]
[1756469948852,45.94590345,208.87,208.85,57.92]
[1756469949366,4.78789619,208.86,208.85,20.0]
[1756469949570,4.78789619,208.86,208.83,20.0]
[1756469949571,26.0,208.84,208.83,20.0]
[1756469949874,45.94590345,208.84,208.83,20.0]
[1756469950269,45.94590345,208.84,208.8,57.92]
[1756469950469,19.28590345,208.82,208.81,20.0]
[1756469950650,26.66,208.83,208.81,20.0]
[1756469951071,19.28590345,208.82,208.81,20.0]
[1756469951865,24.07471678,208.82,208.79,20.0]
[1756469952076,45.28590345,208.8,208.79,20.0]
[1756469952261,45.94590345,208.8,208.79,20.0]
[1756469952457,45.28590345,208.8,208.79,20.0]
[1756469952967,45.94590345,208.8,208.79,20.0]
[1756469954474,50.73517548,208.8,208.79,20.0]
[1756469955422,50.73517548,208.8,208.75,0.03]
[1756469955572,19.28590345,208.76,208.75,0.03]
[1756469956090,0.66,208.76,208.75,0.03]
[1756469956258,19.28590345,208.76,208.75,0.03]
[1756469956462,24.73609314,208.76,208.75,0.03]
[1756469958285,24.87825471,208.76,208.75,0.03]
[1756469958474,30.10909079,208.76,208.75,0.03]
[1756469964593,81.6446848,208.76,208.75,1e-08]
[1756469964906,26.14216157,208.73,208.72,0.03]
[1756469965095,64.08216157,208.73,208.72,0.03]
[1756469965297,82.10269352,208.73,208.72,0.03]
[1756469969909,39.73775558,208.7,208.69,1e-08]
[1756469970123,13.73775558,208.69,208.61,0.71]
[1756469970300,12.56965379,208.62,208.61,0.71]
[1756469970608,26.0,208.6,208.59,0.03]
[1756469971121,43.50567921,208.6,208.59,0.03]
[1756469971287,88.94486456,208.6,208.59,0.03]
[1756469971487,88.23486456,208.6,208.59,0.03]
[1756469975989,88.94486456,208.6,208.59,0.03]
[1756469976610,88.23486456,208.6,208.59,0.03]
[1756469976810,68.87602542,208.6,208.59,0.03]
[1756469977110,88.23486456,208.6,208.59,0.03]
[1756469977691,88.94486456,208.6,208.59,0.03]
[1756469978593,102.54045857,208.6,208.59,0.03]
[1756469979997,39.59559401,208.57,208.56,0.2]
[1756469980192,101.8511481,208.57,208.56,1e-08]
[1756469980399,13.73775558,208.56,208.54,0.2]
[1756469980599,71.05659472,208.55,208.54,0.2]
[1756469980798,71.76659472,208.55,208.54,0.2]
[1756469981195,71.76659472,208.55,208.54,1e-08]
[1756469982396,75.8516079,208.55,208.54,1e-08]
[1756469982592,76.5616079,208.55,208.54,1e-08]
[1756469982817,76.5616079,208.55,208.52,0.2]
[1756469982818,13.59559401,208.53,208.52,0.2]
[1756469983121,13.73775558,208.52,208.5,0.2]
[1756469983294,33.09659472,208.52,208.5,0.2]
[1756469984414,30.93786462,208.52,208.51,0.87]
[1756469984721,88.25670376,208.52,208.51,0.87]
[1756469984889,30.79570305,208.52,208.51,0.87]
[1756469985095,37.96,208.56,208.51,0.87]
[1756469985291,37.96,208.56,208.52,0.67]
[1756469985292,19.35883914,208.54,208.52,0.67]
[1756469985515,19.35883914,208.55,208.52,20.67]
[1756469985820,19.35883914,208.59,208.55,20.0]
[1756469986007,26.0,208.57,208.56,0.67]
[1756469986320,50.15339252,208.57,208.55,20.0]
[1756469986517,19.35883914,208.57,208.55,20.0]
[1756469986917,4.79431291,208.59,208.55,20.0]
[1756469986918,26.0,208.58,208.56,0.67]
[1756469987217,4.79431291,208.59,208.55,20.0]
[1756469987418,0.14216157,208.57,208.56,0.67]
[1756469987625,0.14216157,208.57,208.51,0.2]
[1756469987626,26.0,208.54,208.53,20.67]
[1756469987811,45.35883914,208.54,208.53,20.67]
[1756469988700,50.15408225,208.54,208.53,20.67]
[1756469989019,50.15408225,208.54,208.53,0.67]
[1756469989611,50.15408225,208.54,208.51,20.87]
[1756469989803,19.35883914,208.52,208.51,20.2]
[1756469990316,50.15408225,208.54,208.51,20.87]
[1756469990616,26.0,208.52,208.51,20.2]
[1756469990824,26.0,208.52,208.51,20.87]
[1756469992318,19.35883914,208.58,208.54,20.0]
[1756469992524,57.31883914,208.6,208.56,20.0]
[1756469992711,26.0,208.58,208.57,0.67]
[1756469993020,37.96,208.61,208.58,20.0]
[1756469993222,26.0,208.59,208.58,20.0]
[1756469993421,4.79271507,208.65,208.58,20.0]
[1756469993729,26.0,208.61,208.59,0.67]
[1756469993925,26.0,208.6,208.58,20.0]
[1756469994423,26.0,208.6,208.59,0.67]
[1756469994609,4.79387423,208.6,208.58,20.67]
[1756469995020,26.0,208.59,208.58,20.67]
[1756469996028,4.79387423,208.6,208.58,20.67]
[1756469996223,4.79387423,208.6,208.59,0.67]
[1756469996723,26.0,208.6,208.59,0.67]
[1756469997807,24.15250397,208.61,208.58,20.0]
[1756469998006,45.35883914,208.59,208.56,20.0]
[1756469998214,19.35883914,208.58,208.56,20.0]
[1756469998607,24.15337068,208.58,208.56,20.67]
[1756469998810,26.0,208.57,208.56,20.67]
[1756469999020,4.79440646,208.58,208.56,20.67]
[1756469999223,24.15298222,208.59,208.56,20.67]
[1756470000409,0.14216157,208.61,208.57,0.71]
[1756470000627,26.0,208.62,208.59,20.0]
[1756470000934,57.31883914,208.64,208.62,20.0]
[1756470001134,37.96,208.64,208.62,20.0]
[1756470001431,37.96,208.64,208.62,20.71]
[1756470001619,0.06,208.63,208.62,20.0]
[1756470002125,0.06,208.63,208.62,20.71]
[1756470003729,0.06,208.63,208.62,40.06883914]
[1756470003916,0.06,208.63,208.62,20.71]
[1756470004228,26.06,208.63,208.62,20.0]
[1756470004735,0.06,208.63,208.62,40.06883914]
[1756470005446,0.06,208.63,208.62,44.86224341]
[1756470006043,0.06,208.63,208.62,138.93783742]
[1756470007412,0.06,208.63,208.62,139.15]
[1756470007619,0.06,208.63,208.62,120.54883914]
[1756470007819,0.06,208.63,208.62,158.48883914]
[1756470008047,0.06,208.63,208.62,139.13]
[1756470008255,0.06,208.63,208.62,158.48883914]
[1756470010031,0.06,208.63,208.62,139.13]
[1756470010242,0.06,208.63,208.62,158.48883914]
[1756470010921,0.06,208.63,208.62,78.00883914]
[1756470012142,0.06,208.63,208.62,58.65]
[1756470012318,4.33980813,208.68,208.62,78.00883914]
[1756470012523,4.33980813,208.68,208.63,19.35883914]
[1756470012844,4.33980813,208.68,208.63,20.06883914]
[1756470013147,23.69864727,208.68,208.66,20.0]
[1756470013657,30.04960861,208.69,208.68,20.0]
[1756470013658,0.06,208.69,208.68,20.0]
[1756470014021,5.53179644,208.69,208.64,20.0]
[1756470014232,26.0,208.66,208.64,20.0]
[1756470014626,26.0,208.65,208.64,20.0]
[1756470015033,30.79271507,208.65,208.64,20.0]
[1756470015848,3.98960861,208.68,208.66,20.0]
[1756470016022,0.06,208.69,208.68,20.0]
[1756470016023,4.85183166,208.69,208.68,20.0]
[1756470016349,17.56293916,208.69,208.66,20.0]
[1756470016642,38.56894593,208.67,208.66,20.0]
[1756470016849,26.0,208.67,208.66,20.0]
[1756470017360,26.0,208.64,208.61,20.0]
[1756470017548,38.56894593,208.64,208.63,20.0]
[1756470018458,38.56894593,208.64,208.61,20.0]
[1756470018826,4.79317451,208.63,208.61,20.0]
[1756470019633,17.36212044,208.63,208.61,20.0]
[1756470019848,4.79317451,208.63,208.61,20.0]
[1756470020028,26.0,208.63,208.61,20.71]
[1756470020360,26.0,208.62,208.61,20.71]
[1756470020559,4.85272429,208.65,208.63,20.0]
[1756470020769,0.06,208.65,208.64,51.21894593]
[1756470020930,0.06,208.68,208.67,20.0]
[1756470021261,0.06,208.68,208.67,32.56894593]
[1756470021429,0.06,208.68,208.67,33.27894593]
[1756470023253,0.06,208.68,208.67,20.0]
[1756470023557,0.06,208.68,208.67,20.71]
[1756470023726,0.06,208.68,208.67,40.04001699]
[1756470026551,0.06,208.68,208.67,20.0]
[1756470029339,4.79225571,208.67,208.65,20.0]
[1756470029658,20.01001699,208.66,208.65,20.0]
[1756470030958,24.12250237,208.66,208.65,20.0]
[1756470032655,35.00956953,208.68,208.65,20.67]
[1756470032858,35.00956953,208.68,208.67,20.0]
[1756470033058,54.33958652,208.68,208.67,20.0]
[1756470033954,26.0,208.66,208.65,20.0]
[1756470034366,45.33001699,208.66,208.65,20.0]
[1756470035159,30.79248538,208.66,208.65,20.0]
[1756470035554,50.12250237,208.66,208.65,20.0]
[1756470036065,0.14216157,208.65,208.63,20.0]
[1756470036374,23.35880085,208.64,208.63,20.0]
[1756470036576,19.99001699,208.64,208.59,20.0]
[1756470036863,19.33001699,208.61,208.59,20.0]
[1756470037245,4.79386385,208.6,208.59,20.0]
[1756470037672,4.79318491,208.63,208.62,20.0]
[1756470037856,28.15409964,208.63,208.62,20.0]
[1756470038169,8.82408265,208.63,208.62,20.0]
[1756470038468,4.79318491,208.63,208.62,20.0]
[1756470038656,8.82569316,208.63,208.62,20.0]
[1756470038862,24.1232019,208.63,208.62,20.0]
[1756470039061,34.82572456,208.63,208.62,20.0]
[1756470039251,30.03253965,208.63,208.62,20.67]
[1756470039663,4.03253965,208.63,208.62,20.67]
[1756470039873,30.03253965,208.63,208.62,20.67]
[1756470040167,34.82571416,208.63,208.62,20.0]
[1756470040362,54.1563217,208.63,208.62,20.0]
[1756470040949,54.1563217,208.63,208.61,0.03]
[1756470041158,23.36314719,208.62,208.61,0.03]
[1756470041362,28.15655146,208.62,208.61,0.03]
[1756470041567,8.82653447,208.62,208.61,0.03]
[1756470042155,28.15655146,208.62,208.61,0.03]
[1756470043050,24.12342126,208.62,208.61,0.03]
[1756470043251,24.92558283,208.62,208.61,0.03]
[1756470043546,13.73775558,208.61,208.59,0.03]
[1756470043774,55.899656,208.6,208.59,0.03]
[1756470044065,56.70181757,208.6,208.59,0.03]
[1756470044274,56.04181757,208.6,208.59,0.03]
[1756470044465,56.70181757,208.6,208.59,0.03]
[1756470045452,61.49568142,208.6,208.59,0.03]
[1756470045652,56.11559622,208.6,208.59,0.03]
[1756470046564,26.0,208.53,208.52,0.03]
[1756470046760,38.5795708,208.53,208.52,20.03]
[1756470047478,43.37504387,208.53,208.52,20.03]
[1756470047854,30.79547307,208.53,208.52,20.03]
[1756470048058,30.79547307,208.53,208.52,20.7]
[1756470048561,4.03291642,208.59,208.57,20.0]
[1756470048753,20.46337779,208.62,208.52,18.07524094]
[1756470048754,4.03291642,208.62,208.6,20.0]
[1756470048956,8.82609093,208.63,208.62,20.0]
[1756470049158,30.03291642,208.63,208.62,20.67]
[1756470049362,4.03291642,208.63,208.62,20.67]
[1756470049560,34.82607458,208.64,208.62,20.67]
[1756470049977,4.03291642,208.64,208.62,20.67]
[1756470050168,4.03291642,208.65,208.63,0.67]
[1756470050373,4.79281694,208.65,208.63,0.67]
[1756470050679,8.88545577,208.66,208.64,20.0]
[1756470050884,21.46502657,208.66,208.64,20.0]
[1756470051265,28.22365842,208.66,208.64,20.0]
[1756470051466,19.33820265,208.65,208.64,20.0]
[1756470051667,26.0,208.63,208.62,20.0]
[1756470051881,49.36630051,208.63,208.6,20.0]
[1756470052062,19.33820265,208.61,208.6,20.0]
[1756470052463,26.0,208.59,208.58,20.0]
[1756470052663,49.36630051,208.59,208.58,20.0]
[1756470053468,54.16039418,208.59,208.58,20.0]
[1756470054466,50.13229632,208.59,208.58,20.0]
[1756470055074,50.13229632,208.59,208.56,20.0]
[1756470055273,50.13229632,208.59,208.56,101.27]
[1756470057099,50.13229632,208.59,208.58,0.03]
[1756470058680,0.06,208.6,208.58,0.7]
[1756470058879,0.06,208.6,208.59,20.0]
[1756470059397,0.06,208.6,208.59,40.00820265]
[1756470060069,0.06,208.6,208.59,77.94820265]
[1756470061998,0.06,208.6,208.59,82.74229632]
[1756470062197,0.06,208.6,208.59,96.33789033]
[1756470064578,0.06,208.6,208.59,176.93789033]
[1756470069094,0.06,208.66,208.65,20.0]
[1756470069300,0.06,208.66,208.65,157.85820265]
[1756470069502,0.06,208.66,208.65,158.53820265]
[1756470070002,0.06,208.66,208.65,138.52]
[1756470071184,0.06,208.66,208.65,163.33091772]
[1756470071409,0.06,208.66,208.65,156.55187613]
[1756470071877,0.06,208.66,208.65,151.75916106]
[1756470072282,0.06,208.66,208.65,138.52]
[1756470073087,0.06,208.66,208.65,151.75916106]
[1756470074101,0.06,208.66,208.65,151.07916106]
[1756470074502,0.06,208.66,208.65,151.75916106]
[1756470077292,0.06,208.66,208.65,156.55187613]
[1756470079404,0.06,208.66,208.65,113.83916106]
[1756470079605,0.06,208.66,208.65,156.55187613]
[1756470085409,0.06,208.66,208.65,182.7066312]
[1756470085605,0.06,208.68,208.67,94.13559401]
[1756470085802,0.06,208.68,208.67,152.03559401]
[1756470086009,0.06,208.68,208.67,100.54]
[1756470086218,0.06,208.68,208.67,150.99916106]
[1756470086701,0.06,208.68,208.67,170.20917235]
[1756470086890,0.06,208.71,208.7,33.59559401]
[1756470087087,0.66,208.8,208.71,13.59559401]
[1756470087307,0.66,208.82,208.79,32.55916106]
[1756470087515,0.66,208.82,208.8,37.9]
[1756470087717,0.66,208.82,208.8,50.45916106]
[1756470087896,0.72,208.84,208.8,50.45916106]
[1756470088218,0.06,208.84,208.8,51.13916106]
[1756470088397,0.06,208.84,208.8,55.92843309]
[1756470089315,0.06,208.84,208.8,62.66088786]
[1756470089932,0.06,208.84,208.83,20.0]
[1756470090099,0.06,208.84,208.83,77.19161583]
[1756470090291,0.06,208.84,208.83,91.46720984]
[1756470090604,0.06,208.84,208.83,96.25579385]
[1756470092415,0.06,208.87,208.86,33.59559401]
[1756470092623,0.06,208.87,208.86,95.57510603]
[1756470092922,0.06,208.87,208.86,96.26510603]
[1756470093103,0.06,208.87,208.86,176.80510603]
[1756470093419,0.06,208.87,208.86,134.11720984]
[1756470093596,0.06,208.87,208.86,176.80510603]
[1756470095411,0.06,208.87,208.86,138.90510603]
[1756470095605,0.06,208.87,208.86,176.78510603]
[1756470096726,0.06,208.87,208.86,157.4934902]
[1756470096924,0.06,208.87,208.86,176.78510603]
[1756470098128,0.06,208.87,208.86,119.6134902]
[1756470098322,0.06,208.87,208.86,176.09510603]